bitfinex/quotes_ETHUSD_20260119
["timestamp","ask_amount","ask_price","bid_price","bid_amount"]
[1768794864906,13.38995304,3212.1,3211.5,12.39760271]
[1768794866039,12.75271033,3212.0,3211.4,3.62786988]
[1768794866831,12.75271033,3212.0,3211.4,15.98398295]
[1768794869334,12.75271033,3212.0,3211.4,3.62786988]
[1768794869536,12.75271033,3212.0,3211.5,12.35611307]
[1768794871052,1.60740994,3212.1,3211.6,12.35611307]
[1768794871219,14.36012027,3212.1,3211.6,12.35611307]
[1768794871820,12.75271033,3212.3,3211.6,12.35611307]
[1768794872026,12.75271033,3212.2,3211.6,12.35611307]
[1768794872741,0.001,3212.4,3211.6,18.17647657]
[1768794872940,0.001,3212.4,3211.9,12.35611307]
[1768794873149,12.75371033,3212.4,3211.9,12.35611307]
[1768794876556,12.75271033,3212.3,3211.8,0.516]
[1768794876761,12.75271033,3212.2,3211.8,0.516]
[1768794876920,12.75271033,3212.2,3211.8,0.002]
[1768794880032,15.8658434,3212.2,3211.8,0.002]
[1768794880263,13.64843768,3212.1,3211.8,0.002]
[1768794881651,4.90333885,3212.4,3211.8,0.002]
[1768794881652,1.27637103,3212.4,3211.8,12.5984321]
[1768794881853,0.001,3212.4,3211.8,13.1124321]
[1768794883369,0.001,3212.4,3211.9,3.11342196]
[1768794883564,0.001,3212.4,3212.0,12.5964321]
[1768794886541,0.001,3212.4,3212.0,15.70972075]
[1768794886752,0.001,3212.4,3212.0,12.5964321]
[1768794886953,0.001,3212.4,3212.0,15.70974881]
[1768794887667,0.001,3212.1,3212.0,17.64367158]
[1768794887870,0.0223809,3212.7,3212.3,12.5964321]
[1768794889240,12.06185334,3212.5,3211.8,0.516]
[1768794889444,12.06185334,3212.5,3211.8,3.62946252]
[1768794889641,12.06185334,3212.5,3211.8,0.516]
[1768794889901,12.06185334,3212.5,3211.8,13.1124321]
[1768794890498,12.06185334,3212.4,3211.8,13.1124321]
[1768794890979,12.06185334,3212.4,3211.8,16.22592914]
[1768794891184,12.06185334,3212.4,3211.8,18.15989263]
[1768794891803,12.06185334,3212.4,3211.8,0.516]
[1768794892174,12.06185334,3212.4,3211.8,0.002]
[1768794893055,11.99228815,3212.3,3211.8,0.002]
[1768794894366,11.99228815,3212.2,3211.8,0.002]
[1768794896902,11.99228815,3212.4,3211.8,12.66315813]
[1768794898590,11.99228815,3212.4,3211.8,15.77665769]
[1768794899381,11.99228815,3212.4,3212.1,0.002]
[1768794899575,0.514,3212.5,3212.1,12.66315813]
[1768794899990,12.50628815,3212.5,3212.1,0.002]
[1768794901611,11.99228815,3212.5,3212.1,0.002]
[1768794902611,0.0223809,3212.7,3212.1,14.24081594]
[1768794904513,12.01466905,3212.7,3212.1,14.24081594]
[1768794904712,12.01466905,3212.7,3212.1,15.77638438]
[1768794906511,12.01466905,3212.7,3212.1,12.66315813]
[1768794906718,12.01466905,3212.7,3212.1,0.002]
[1768794907915,12.01466905,3212.7,3212.1,12.66315813]
[1768794908815,12.01466905,3212.7,3212.1,3.11521767]
[1768794909121,12.01466905,3212.7,3212.1,12.66315813]
[1768794909317,12.01466905,3212.7,3212.1,0.002]
[1768794909619,12.01466905,3212.7,3212.1,15.77635985]
[1768794911438,12.01466905,3212.7,3212.4,0.002]
[1768794911722,13.52738532,3212.7,3212.4,0.002]
[1768794911893,1.53509717,3212.7,3212.4,12.66315813]
[1768794912191,0.0223809,3212.7,3212.4,12.66315813]
[1768794913201,0.0223809,3212.7,3212.4,0.002]
[1768794913720,0.0223809,3212.7,3212.4,12.66315813]
[1768794920938,0.0223809,3212.7,3212.4,0.002]
[1768794921827,0.00850362,3212.7,3212.4,0.002]
[1768794922215,11.99228815,3212.6,3212.4,0.002]
[1768794924006,12.11300045,3212.7,3212.4,0.002]
[1768794924218,15.22566413,3212.7,3212.4,0.002]
[1768794925246,1.33451008,3213.3,3212.6,11.8454462]
[1768794925449,1.33451008,3213.3,3212.7,0.29103335]
[1768794925450,3.53583553,3213.3,3212.7,0.29103335]
[1768794925741,6.64791492,3213.3,3212.6,11.8454462]
[1768794926341,5.81845395,3213.1,3212.6,11.8454462]
[1768794926523,0.5818454,3213.0,3212.6,11.8454462]
[1768794927358,3.69427917,3213.0,3212.4,0.516]
[1768794927557,12.10449683,3212.9,3212.4,0.516]
[1768794932867,12.10449683,3212.8,3212.4,0.002]
[1768794933525,12.10449683,3212.8,3212.1,0.002]
[1768794933526,12.10449683,3212.6,3212.1,0.002]
[1768794935386,12.10449683,3212.5,3212.1,0.002]
[1768794936750,12.10449683,3212.5,3212.4,0.002]
[1768794936951,12.10449683,3212.5,3212.1,0.002]
[1768794937877,12.10449683,3212.4,3212.1,0.002]
[1768794938376,12.10449683,3212.4,3212.0,0.002]
[1768794946478,13.80546076,3212.4,3212.0,0.002]
[1768794948378,16.91841175,3212.4,3212.0,0.002]
[1768794948682,12.55605834,3212.3,3212.0,0.002]
[1768794952585,1.70096393,3212.4,3212.0,12.40415123]
[1768794952788,15.56702647,3212.5,3212.0,12.40415123]
[1768794953675,15.56700741,3212.5,3212.0,12.40415123]
[1768794954179,15.56700741,3212.5,3212.0,0.002]
[1768794957763,12.45416528,3212.5,3212.0,0.002]
[1768794957987,15.56703299,3212.5,3212.0,0.002]
[1768794958368,12.45416528,3212.5,3212.0,0.002]
[1768794958797,15.56701832,3212.5,3212.0,0.002]
[1768794958977,12.45416528,3212.4,3212.0,0.002]
[1768794959580,15.56693766,3212.6,3212.0,12.40415123]
[1768794961890,0.001,3212.3,3212.0,12.40415123]
[1768794962901,0.001,3212.3,3212.0,0.002]
[1768794963071,12.45516528,3212.3,3212.0,0.002]
[1768794964185,12.45416528,3212.2,3212.0,0.002]
[1768794967419,0.001,3212.3,3212.0,0.002]
[1768794967704,0.001,3212.3,3212.1,12.40215123]
[1768794968103,0.001,3212.3,3212.0,0.002]
[1768794970106,0.001,3212.3,3212.0,12.40415123]
[1768794974017,12.45516528,3212.3,3212.0,0.002]
[1768794974220,0.001,3212.3,3212.0,0.002]
[1768794974816,0.001,3212.3,3212.0,12.40415123]
[1768794980832,0.001,3212.3,3212.0,15.51747177]
[1768794981035,0.001,3212.3,3212.0,12.40415123]
[1768794981935,0.001,3212.3,3212.1,12.40215123]
[1768794982720,3.62637995,3213.0,3212.0,4.71864682]
[1768794982721,12.34075589,3213.0,3212.3,12.03087009]
[1768794983035,12.34075589,3212.9,3212.4,12.03087009]
[1768794984737,9.42219449,3213.2,3212.4,12.03087009]
[1768794984909,12.34075589,3213.1,3212.5,12.03087009]
[1768794985305,12.34075589,3213.1,3212.5,13.54524838]
[1768794986856,9.42218064,3213.2,3212.5,13.54524838]
[1768794986857,18.65075589,3213.2,3212.5,13.54524838]
[1768794987152,18.65075589,3213.2,3212.6,12.54487009]
[1768794988144,12.34075589,3213.1,3212.6,12.54487009]
[1768794989038,12.34075589,3213.1,3212.6,15.65761322]
[1768794989241,12.34075589,3213.1,3212.7,0.78913464]
[1768794993032,12.34075589,3213.0,3212.5,0.514]
[1768794993953,12.34075589,3213.0,3212.3,3.11301897]
[1768794994143,12.34075589,3213.0,3212.3,15.65788906]
[1768794995457,12.34075589,3212.9,3212.3,15.65788906]
[1768794995758,12.34075589,3212.9,3212.3,17.53500066]
[1768794996761,12.34075589,3212.8,3212.3,1.8771116]
[1768794996937,12.34075589,3212.8,3212.3,0.514]
[1768794997131,0.001,3212.7,3212.3,0.514]
[1768794997458,12.34175589,3212.7,3212.3,0.514]
[1768794998560,0.001,3212.7,3212.4,12.40215123]
[1768795005080,0.001,3212.7,3212.3,12.91615123]
[1768795006098,0.001,3212.7,3212.3,0.514]
[1768795006099,12.66704935,3212.6,3212.3,0.514]
[1768795007692,0.001,3212.7,3212.3,0.514]
[1768795007865,0.001,3212.7,3212.3,12.91615123]
[1768795008066,12.66804935,3212.7,3212.3,12.91615123]
[1768795009598,0.001,3212.4,3212.3,12.91615123]
[1768795011779,0.001,3212.4,3212.3,16.0291855]
[1768795012502,0.001,3212.4,3212.3,17.94342608]
[1768795014298,0.001,3212.4,3212.3,14.83039181]
[1768795014908,0.001,3212.4,3212.3,17.94342608]
[1768795017994,0.001,3212.4,3212.3,14.83039181]
[1768795019013,0.001,3212.4,3212.3,17.94342608]
[1768795019821,12.83687099,3212.9,3212.4,12.40215123]
[1768795021418,0.001,3212.6,3212.4,12.40215123]
[1768795021618,0.001,3212.6,3212.4,17.42931397]
[1768795023528,0.001,3212.6,3212.4,5.02716274]
[1768795023699,0.001,3212.6,3212.5,12.40215123]
[1768795024332,12.83687099,3213.1,3212.5,12.40215123]
[1768795027528,12.83687099,3213.1,3212.6,12.40215123]
[1768795027744,13.26062713,3213.3,3212.6,12.40215123]
[1768795027911,13.26062713,3213.3,3212.6,14.26493331]
[1768795028116,13.26062713,3213.3,3212.7,12.91615123]
[1768795029439,13.26062713,3213.3,3212.7,16.02875408]
[1768795033154,0.001,3213.0,3212.7,16.02875408]
[1768795033859,0.001,3213.0,3212.8,12.40215123]
[1768795034055,0.001,3213.0,3212.8,14.19130485]
[1768795036145,0.001,3213.0,3212.8,17.30384022]
[1768795036354,0.001,3213.0,3212.9,12.40215123]
[1768795037865,0.001,3213.0,3212.8,1.78915362]
[1768795038043,0.001,3213.0,3212.8,14.19130485]
[1768795042784,0.001,3213.0,3212.8,17.30382755]
[1768795042967,0.001,3213.0,3212.8,14.19130485]
[1768795043171,0.001,3213.0,3212.8,12.40215123]
[1768795043379,0.001,3213.0,3212.7,3.62660628]
[1768795043585,0.001,3213.0,3212.7,16.02875751]
[1768795049181,0.001,3213.0,3212.7,12.91615123]
[1768795049361,0.001,3213.0,3212.7,16.02879586]
[1768795049875,0.001,3213.0,3212.7,3.62664463]
[1768795050682,0.001,3213.0,3212.8,12.40215123]
[1768795052783,0.001,3213.0,3212.8,15.51469437]
[1768795052983,0.001,3213.0,3212.8,12.40215123]
[1768795053901,0.001,3213.0,3212.8,15.51468826]
[1768795056403,0.001,3213.0,3212.8,12.40215123]
[1768795056601,0.001,3213.0,3212.7,3.6266063]
[1768795057475,0.001,3213.0,3212.7,16.02875753]
[1768795058588,0.001,3213.0,3212.7,12.91615123]
[1768795058757,0.001,3213.0,3212.7,0.514]
[1768795058957,12.07515271,3213.0,3212.7,0.514]
[1768795059656,12.07515271,3213.0,3212.7,3.62661928]
[1768795059863,0.001,3213.0,3212.7,3.62661928]
[1768795060067,0.001,3213.0,3212.7,15.82529718]
[1768795061187,0.001,3213.0,3212.7,17.71909997]
[1768795063883,0.001,3213.0,3212.7,14.60648069]
[1768795064072,0.001,3213.0,3212.7,12.7126779]
[1768795064251,0.001,3213.0,3212.7,0.514]
[1768795064658,12.07515271,3213.0,3212.7,0.514]
[1768795065062,12.07515271,3213.0,3212.7,3.62664055]
[1768795065370,12.07515271,3213.0,3212.7,0.514]
[1768795066683,12.07515271,3213.0,3212.7,3.62663973]
[1768795067187,12.07515271,3213.0,3212.7,0.514]
[1768795067569,12.07515271,3213.0,3212.6,3.112672]
[1768795067768,12.07515271,3213.0,3212.7,0.514]
[1768795067978,12.07415271,3212.9,3212.2,3.11312723]
[1768795068182,12.07415271,3212.6,3212.3,0.514]
[1768795071867,12.07415271,3212.6,3212.1,0.514]
[1768795072191,12.07415271,3212.5,3212.1,0.514]
[1768795073015,12.05457072,3212.4,3212.0,0.002]
[1768795074968,12.05457072,3212.2,3212.0,0.002]
[1768795076322,12.05457072,3212.4,3212.0,0.002]
[1768795076518,12.05457072,3212.6,3212.0,12.01510889]
[1768795077013,12.05457072,3212.5,3212.0,0.002]
[1768795079577,12.05457072,3212.4,3212.3,0.002]
[1768795082714,12.00457072,3212.4,3212.3,0.002]
[1768795085918,12.00457072,3212.4,3212.0,0.002]
[1768795085919,12.05457072,3212.3,3212.0,0.002]
[1768795087928,12.05457072,3212.5,3212.0,12.01510889]
[1768795088129,15.16741278,3212.5,3212.0,12.01510889]
[1768795090132,12.05457072,3212.4,3212.0,12.01510889]
[1768795092539,12.05457072,3212.4,3212.3,0.002]
[1768795092729,12.05557072,3212.7,3212.3,0.002]
[1768795094637,0.001,3212.7,3212.3,12.01510889]
[1768795097638,15.16712064,3212.8,3212.4,12.01310889]
[1768795097639,12.05457072,3212.8,3212.4,12.01310889]
[1768795097936,12.05457072,3212.8,3212.5,1.20151089]
[1768795098949,12.05457072,3212.8,3212.3,15.1281128]
[1768795099517,12.05457072,3212.8,3212.3,12.01510889]
[1768795100638,12.05457072,3212.8,3212.3,0.002]
[1768795101735,12.05257072,3212.8,3212.3,0.002]
[1768795102547,12.05257072,3212.8,3212.3,12.49179453]
[1768795102846,12.05257072,3212.8,3212.3,14.05229679]
[1768795103052,12.05257072,3212.8,3212.3,1.56250226]
[1768795104044,0.001,3212.5,3212.3,1.56250226]
[1768795106056,0.001,3212.5,3212.3,14.05229679]
[1768795108162,0.001,3212.5,3212.3,17.1653304]
[1768795108350,0.001,3212.5,3212.4,0.83331339]
[1768795110754,0.001,3212.5,3212.3,1.56250226]
[1768795111475,0.001,3212.5,3212.3,14.05229679]
[1768795111627,0.001,3212.5,3212.4,15.60273189]
[1768795111827,12.91318144,3212.9,3212.5,12.48979453]
[1768795112060,12.91318144,3213.2,3212.5,12.48979453]
[1768795112428,16.02543496,3213.2,3212.5,12.48979453]
[1768795112628,12.91318144,3213.2,3212.6,14.10146772]
[1768795113164,16.02539821,3213.2,3212.6,1.61167319]
[1768795113461,12.91318144,3213.0,3212.3,0.002]
[1768795113660,13.42718144,3213.0,3212.3,0.002]
[1768795114358,12.91318144,3212.8,3212.3,0.002]
[1768795116363,12.91318144,3212.8,3212.6,0.002]
[1768795116559,16.02582812,3212.7,3212.6,0.002]
[1768795116748,12.91318144,3212.7,3212.6,0.002]
[1768795117965,12.91318144,3212.7,3212.3,0.002]
[1768795118645,12.33371712,3212.5,3212.3,0.002]
[1768795121071,12.33371712,3212.4,3212.3,0.002]
[1768795122244,14.24105129,3212.4,3212.3,0.002]
[1768795123775,17.35398865,3212.4,3212.3,0.002]
[1768795123979,14.24105129,3212.4,3212.3,0.002]
[1768795124166,17.35398865,3212.4,3212.3,0.002]
[1768795124474,14.24105129,3212.4,3212.3,0.002]
[1768795125178,12.33371712,3212.3,3211.8,0.002]
[1768795125374,14.21571119,3212.3,3211.8,0.002]
[1768795126575,12.33371712,3212.3,3211.8,0.002]
[1768795127751,12.33371712,3212.3,3212.1,0.002]
[1768795135947,12.68771541,3212.8,3212.1,12.8148958]
[1768795136147,12.68771541,3212.6,3212.1,0.002]
[1768795136478,14.00788695,3212.6,3212.1,0.002]
[1768795137565,4.43293978,3212.6,3212.1,0.002]
[1768795137900,12.68771541,3212.5,3212.1,0.002]
[1768795139483,0.001,3212.3,3212.1,0.002]
[1768795140489,0.001,3212.3,3212.1,12.8148958]
[1768795141783,12.68271481,3212.4,3212.1,0.002]
[1768795143786,15.7956663,3212.4,3212.1,0.002]
[1768795145100,12.68771541,3212.3,3212.1,0.002]
[1768795145401,14.26728204,3212.3,3212.1,0.002]
[1768795146467,4.69262941,3212.3,3212.1,0.002]
[1768795146693,12.68771541,3212.2,3212.1,0.002]
[1768795154271,15.80084659,3212.2,3212.1,0.002]
[1768795154473,12.68771541,3212.2,3212.1,0.002]
[1768795155708,16.31479127,3212.3,3212.1,0.002]
[1768795155893,12.68771541,3212.2,3212.1,0.002]
[1768795162704,0.514,3212.3,3212.1,0.002]
[1768795163611,12.3957845,3212.3,3212.1,0.002]
[1768795164887,0.514,3212.3,3212.1,0.002]
[1768795166891,11.8817845,3212.4,3212.1,0.002]
[1768795167196,12.3957845,3212.4,3212.1,0.002]
[1768795167721,11.8817845,3212.4,3212.1,0.002]
[1768795167903,12.3957845,3212.4,3212.1,0.002]
[1768795169585,15.50874986,3212.4,3212.1,0.002]
[1768795170018,12.3957845,3212.4,3212.1,0.002]
[1768795172716,11.8817845,3212.4,3212.1,0.002]
[1768795174117,3.11287865,3212.5,3212.1,12.70474404]
[1768795174312,15.50866315,3212.5,3212.1,0.002]
[1768795174514,11.8817845,3212.4,3212.1,0.002]
[1768795177621,14.99456689,3212.6,3212.1,12.70474404]
[1768795177844,0.514,3212.5,3212.1,12.70474404]
[1768795177989,11.8817845,3212.5,3212.1,0.002]
[1768795178828,5.81834214,3212.9,3212.1,11.74067294]
[1768795178829,16.04147674,3212.7,3212.1,11.74067294]
[1768795180221,12.92875712,3212.6,3212.1,11.74067294]
[1768795183223,12.92875712,3212.6,3212.1,0.002]
[1768795183426,16.04150365,3212.6,3212.1,0.002]
[1768795185533,16.04150365,3212.6,3212.1,11.74067294]
[1768795185992,12.92875712,3212.6,3212.1,0.002]
[1768795186196,12.92875712,3212.6,3212.4,0.002]
[1768795187697,0.514,3212.7,3212.4,0.002]
[1768795187896,0.514,3212.7,3212.4,1.48737904]
[1768795188125,13.44275712,3212.7,3212.4,0.002]
[1768795198304,12.53962167,3212.6,3212.4,0.002]
[1768795198540,12.53962167,3212.6,3212.1,0.002]
[1768795200408,15.65236554,3212.6,3212.1,0.002]
[1768795201616,12.53962167,3212.5,3212.1,0.002]
[1768795201822,12.53962167,3212.3,3212.1,0.002]
[1768795202219,15.65268642,3212.3,3212.1,0.002]
[1768795202541,15.65268642,3212.3,3211.3,12.51987061]
[1768795202542,12.53962167,3212.1,3211.3,12.51987061]
[1768795202743,12.53962167,3212.2,3211.3,12.51987061]
[1768795202939,12.53962167,3211.9,3211.3,12.51987061]
[1768795203140,18.76575117,3212.3,3211.3,12.51987061]
[1768795203444,14.60384788,3212.2,3211.3,12.51987061]
[1768795203615,15.11784788,3212.2,3211.3,12.51987061]
[1768795203950,12.53962167,3211.9,3211.3,0.002]
[1768795204442,12.53962167,3211.7,3211.3,0.002]
[1768795204646,12.53962167,3211.7,3211.1,0.002]
[1768795204647,12.53962167,3211.6,3211.1,0.002]
[1768795204848,13.84498384,3211.6,3211.0,0.002]
[1768795205010,12.53962167,3211.4,3211.0,0.002]
[1768795205347,13.05362167,3211.4,3211.0,0.002]
[1768795205853,13.05362167,3211.4,3210.6,0.002]
[1768795205854,12.53962167,3211.1,3210.6,0.002]
[1768795206144,12.53962167,3210.9,3210.5,0.002]
[1768795206848,12.53962167,3210.5,3209.8,12.51987061]
[1768795207145,0.514,3211.0,3210.0,12.51987061]
[1768795207146,12.53962167,3210.8,3210.0,12.51987061]
[1768795207816,3.1145856,3210.7,3210.0,12.51987061]
[1768795208015,13.05362167,3210.6,3210.0,12.51987061]
[1768795209448,14.37161614,3210.6,3210.0,12.51987061]
[1768795209944,12.53962167,3210.5,3210.3,0.002]
[1768795211530,12.53962167,3210.5,3210.0,0.002]
[1768795212442,15.6544149,3210.5,3210.0,0.002]
[1768795212750,12.53962167,3210.5,3210.0,0.002]
[1768795212920,15.65442732,3210.5,3210.0,0.002]
[1768795213354,12.53962167,3210.4,3210.0,0.002]
[1768795214552,15.65455076,3210.4,3210.0,0.002]
[1768795214752,15.65455076,3210.4,3209.7,0.002]
[1768795214753,12.53962167,3210.3,3209.7,0.002]
[1768795215654,12.53962167,3209.9,3209.5,0.002]
[1768795216030,12.53962167,3209.9,3209.5,12.51987061]
[1768795216333,15.65481925,3210.1,3209.5,12.51987061]
[1768795216643,1.31799447,3210.6,3209.6,12.51787061]
[1768795216847,12.53962167,3210.7,3209.7,12.51787061]
[1768795216848,0.514,3210.7,3209.7,12.51787061]
[1768795217220,13.05362167,3210.7,3209.7,12.51787061]
[1768795217922,12.53962167,3210.4,3209.7,12.51787061]
[1768795218133,3.11516775,3210.1,3209.5,13.03387061]
[1768795218337,15.65478942,3210.1,3209.5,13.03387061]
[1768795218569,12.53962167,3210.1,3209.5,12.93617061]
[1768795218941,12.53962167,3210.1,3209.4,3.11783313]
[1768795218942,12.53962167,3210.1,3209.4,0.002]
[1768795219256,12.53962167,3210.1,3209.4,12.51987061]
[1768795219470,14.92245232,3210.1,3209.4,12.51987061]
[1768795220239,14.92245232,3210.1,3209.4,0.002]
[1768795220640,12.53962167,3210.0,3209.4,0.002]
[1768795221238,12.53962167,3210.0,3209.4,12.51987061]
[1768795221833,12.53962167,3209.8,3209.4,0.002]
[1768795222035,13.84498384,3209.8,3209.4,0.002]
[1768795222263,13.84498384,3209.8,3209.7,0.002]
[1768795222764,16.96044274,3209.8,3209.7,0.002]
[1768795223742,12.11607827,3209.7,3209.4,0.002]
[1768795224065,12.11607827,3209.7,3209.0,12.01263858]
[1768795224366,14.08131409,3209.6,3209.0,12.01263858]
[1768795225471,12.11607827,3209.5,3209.0,0.002]
[1768795225765,12.11607827,3209.5,3208.9,0.002]
[1768795225766,12.11607827,3209.4,3208.9,12.01263858]
[1768795229246,12.11607827,3209.9,3208.9,12.01263858]
[1768795229446,12.11607827,3209.6,3209.0,12.01063858]
[1768795229648,2.03816342,3209.5,3209.0,12.01063858]
[1768795229851,14.15424169,3209.5,3209.0,12.01063858]
[1768795230063,14.15424169,3209.5,3208.9,0.002]
[1768795230867,14.15424169,3209.5,3208.9,12.01263858]
[1768795231168,14.15424169,3209.5,3208.9,0.002]
[1768795231365,12.11607827,3209.4,3208.9,12.01263858]
[1768795232069,12.11607827,3210.2,3209.1,5.82330159]
[1768795232273,0.515,3210.1,3209.2,12.01063858]
[1768795232453,12.11607827,3210.2,3209.2,12.01063858]
[1768795232765,0.001,3210.3,3209.5,12.01063858]
[1768795232766,0.516,3210.3,3209.5,12.01063858]
[1768795233469,0.516,3210.3,3209.7,12.01063858]
[1768795233470,0.001,3210.3,3209.7,12.01063858]
[1768795234043,15.23205631,3210.3,3209.7,12.01063858]
[1768795234239,3.11597804,3210.3,3209.7,12.01063858]
[1768795235258,0.001,3210.3,3209.7,13.52327695]
[1768795236075,12.11707827,3210.3,3209.7,13.52327695]
[1768795236271,12.11707827,3210.3,3209.7,12.01063858]
[1768795236636,12.11707827,3210.3,3209.4,12.01063858]
[1768795237451,3.11507071,3210.2,3209.4,12.01063858]
[1768795237766,12.63107827,3210.1,3209.3,12.01063858]
[1768795237935,12.63107827,3210.1,3209.2,0.002]
[1768795237936,12.11607827,3209.9,3209.2,0.002]
[1768795239568,11.81195654,3209.7,3208.9,0.002]
[1768795239772,11.81195654,3209.5,3208.9,0.002]
[1768795241560,11.81195654,3209.3,3208.9,0.002]
[1768795241762,11.81195654,3209.1,3208.9,0.002]
[1768795242059,12.32695654,3209.3,3208.9,0.002]
[1768795242374,3.11584719,3209.4,3208.9,0.002]
[1768795242744,3.11567647,3209.6,3208.9,0.002]
[1768795244872,18.04330948,3209.6,3208.9,0.002]
[1768795245074,14.92763301,3209.6,3208.9,0.002]
[1768795245646,3.11521968,3210.1,3208.9,0.002]
[1768795245647,3.11516775,3210.1,3209.4,5.82330159]
[1768795245846,3.11516775,3210.1,3209.5,0.58233016]
[1768795246041,3.11516775,3210.1,3209.1,6.33730159]
[1768795246042,14.92712429,3210.1,3209.1,6.33730159]
[1768795246573,14.92712429,3210.1,3208.9,0.002]
[1768795246574,11.81195654,3210.0,3208.9,0.002]
[1768795246774,8.93846934,3210.1,3208.9,0.002]
[1768795246775,11.81195654,3209.8,3209.2,0.002]
[1768795247145,11.81295654,3209.8,3209.2,0.002]
[1768795247346,11.81195654,3209.6,3209.2,0.002]
[1768795247945,11.81295654,3209.8,3209.2,0.002]
[1768795248547,0.001,3209.8,3209.2,0.002]
[1768795250980,11.81195654,3209.7,3209.2,0.002]
[1768795251345,3.1164589,3209.8,3209.2,0.002]
[1768795251746,0.001,3209.8,3209.2,0.002]
[1768795252267,0.001,3209.8,3209.2,0.58453016]
[1768795252746,0.001,3210.3,3209.4,6.23169438]
[1768795252961,0.001,3210.3,3209.4,8.93914878]
[1768795253159,12.10625904,3210.3,3209.4,3.11584719]
[1768795253360,12.10625904,3210.3,3209.5,0.31158472]
[1768795254482,12.10625904,3210.3,3209.3,3.11592623]
[1768795255187,12.10525904,3210.1,3209.2,3.63201104]
[1768795257886,12.10525904,3210.0,3209.2,3.63201104]
[1768795258188,12.10525904,3210.0,3209.2,3.6320403]
[1768795258757,12.10525904,3210.0,3209.5,0.002]
[1768795258958,13.62830412,3210.0,3209.5,0.002]
[1768795260420,12.10525904,3209.9,3209.5,0.002]
[1768795262472,12.10525904,3209.7,3209.5,0.002]
[1768795263792,12.10525904,3209.9,3209.5,0.002]
[1768795263970,0.001,3210.0,3209.5,0.002]
[1768795266806,12.78090245,3210.0,3209.5,0.002]
[1768795268578,12.10525904,3209.8,3209.5,0.002]
[1768795268781,12.62025904,3209.8,3209.5,0.002]
[1768795271113,3.11555597,3209.7,3209.5,0.002]
[1768795271413,12.10525904,3209.6,3209.5,0.002]
[1768795274988,3.63049091,3209.8,3209.5,0.002]
[1768795274989,15.22074395,3209.8,3209.5,0.002]
[1768795275189,12.10525904,3209.7,3209.5,0.002]
[1768795277974,12.10525904,3209.7,3208.8,6.74683959]
[1768795277975,12.10525904,3209.5,3208.5,0.002]
[1768795278225,12.10525904,3209.5,3208.2,0.002]
[1768795278226,12.10525904,3208.7,3208.2,0.002]
[1768795278441,12.10525904,3208.7,3208.1,0.002]
[1768795278940,0.515,3208.8,3208.1,3.11909057]
[1768795279097,12.62025904,3208.8,3208.1,0.002]
[1768795280438,3.11652694,3208.7,3208.2,0.008]
[1768795280742,15.22178598,3208.7,3208.2,0.008]
[1768795280909,12.10525904,3208.6,3208.2,0.008]
[1768795281109,12.10525904,3208.6,3208.1,0.002]
[1768795281436,13.9905808,3208.6,3208.1,0.002]
[1768795281934,13.98684219,3208.6,3208.1,0.002]
[1768795282607,12.35847604,3208.5,3208.4,0.002]
[1768795283010,12.35847604,3208.5,3208.1,0.002]
[1768795285329,3.11681835,3208.4,3208.1,0.002]
[1768795285650,3.11681835,3208.4,3207.9,0.01]
[1768795285651,12.35847604,3208.3,3207.9,0.002]
[1768795286213,12.848864,3208.3,3207.9,0.002]
[1768795286536,12.35847604,3208.3,3207.9,0.002]
[1768795287648,12.35847604,3208.2,3207.9,0.002]
[1768795289519,12.35847604,3208.1,3207.9,0.002]
[1768795289720,15.99048908,3208.2,3207.9,0.002]
[1768795290376,12.35847604,3209.1,3207.9,0.01373861]
[1768795290520,12.87347604,3209.0,3207.9,0.01373861]
[1768795291032,0.515,3208.9,3207.9,0.01373861]
[1768795291244,12.35847604,3208.8,3207.9,0.01373861]
[1768795291619,0.515,3208.9,3207.9,0.01373861]
[1768795291620,12.35847604,3208.6,3207.9,0.01373861]
[1768795291820,13.90597634,3208.6,3207.9,0.01373861]
[1768795292047,0.515,3208.5,3207.9,0.01373861]
[1768795292233,12.87347604,3208.5,3207.9,0.01373861]
[1768795292732,12.35847604,3208.5,3207.9,3.13103195]
[1768795293062,12.35847604,3208.5,3208.0,0.01173861]
[1768795293629,3.11672142,3208.5,3207.9,0.002]
[1768795293942,12.35847604,3208.4,3207.9,0.002]
[1768795294320,12.35847604,3208.4,3207.9,0.01373861]
[1768795294520,12.35847604,3208.4,3208.2,0.002]
[1768795295123,15.47604412,3208.7,3208.2,0.01373861]
[1768795295323,12.35847604,3208.6,3208.2,0.01373861]
[1768795295627,15.99010197,3208.6,3208.2,0.002]
[1768795295825,12.87347604,3208.6,3208.2,0.002]
[1768795296660,12.35847604,3208.5,3208.2,0.002]
[1768795298278,0.515,3208.6,3208.2,0.002]
[1768795298560,12.42283266,3208.7,3208.2,0.01373861]
[1768795298725,0.001,3208.7,3208.2,0.32682282]
[1768795298924,0.001,3208.7,3208.3,0.01173861]
[1768795299166,12.42183266,3209.4,3208.4,0.01073861]
[1768795299343,0.515,3209.3,3208.4,0.01073861]
[1768795299523,12.42183266,3209.4,3208.6,0.01073861]
[1768795299725,12.93683266,3209.4,3208.6,0.01073861]
[1768795300158,12.42183266,3209.2,3208.6,0.01073861]
[1768795302251,12.42183266,3209.1,3208.6,0.01073861]
[1768795302528,18.24981462,3208.9,3208.2,0.002]
[1768795302732,14.29831412,3208.8,3208.2,0.002]
[1768795304452,12.42183266,3208.7,3208.2,0.002]
[1768795305164,12.93683266,3208.7,3208.2,0.002]
[1768795306573,12.42183266,3208.5,3208.2,0.002]
[1768795307074,0.001,3208.4,3208.2,0.002]
[1768795312571,12.42283266,3208.4,3208.2,0.002]
[1768795312975,0.001,3208.4,3208.2,0.002]
[1768795313380,0.001,3208.4,3208.2,0.01273861]
[1768795313580,0.515,3208.7,3208.3,0.00973861]
[1768795313955,16.58394693,3208.9,3208.3,0.00973861]
[1768795314576,12.95255451,3208.8,3208.3,0.00973861]